[Event "Titled Tuesday Blitz March 14 Early 2023"]
[White "Firouzja, Alireza"]
[Black "Khoroshev, Nikita"]
[WhiteFideId "12573981"]
[BlackFideId "14200287"]
[WhiteElo "2904"]
[BlackElo "2354"]
[Result "1-0"]
[Round "02"]
[TimeControl "180+2"]
[Date "2023.03.14"]
[WhiteClock "0:00:12"]
[BlackClock "0:00:10"]

1. d4 {[%clk 0:02:55]}  Nf6 {[%clk 0:02:51]} 2. g3 {[%clk 0:02:51]}  g6 {[%clk 0:02:51]} 3. Bg2 {[%clk 0:02:51]}  Bg7 {[%clk 0:02:50]} 4. e4 {[%clk 0:02:50]}  d6 {[%clk 0:02:50]} 5. Ne2 {[%clk 0:02:49]}  e5 {[%clk 0:02:48]} 6. Nbc3 {[%clk 0:02:49]}  Nc6 {[%clk 0:02:47]} 7. h3 {[%clk 0:02:33]}  exd4 {[%clk 0:02:37]} 8. Nxd4 {[%clk 0:02:32]}  O-O {[%clk 0:02:37]} 9. Be3 {[%clk 0:02:27]}  Ne5 {[%clk 0:02:35]} 10. O-O {[%clk 0:02:24]}  Nc4 {[%clk 0:02:31]} 11. Bc1 {[%clk 0:02:23]}  Re8 {[%clk 0:02:29]} 12. b3 {[%clk 0:02:20]}  Ne5 {[%clk 0:02:20]} 13. Bb2 {[%clk 0:02:19]}  a6 {[%clk 0:02:18]} 14. a4 {[%clk 0:02:16]}  Bd7 {[%clk 0:02:17]} 15. Qd2 {[%clk 0:02:16]}  Nc6 {[%clk 0:02:17]} 16. Nde2 {[%clk 0:02:11]}  h5 {[%clk 0:02:14]} 17. Rab1 {[%clk 0:02:06]}  Nb4 {[%clk 0:02:08]} 18. Nd1 {[%clk 0:01:52]}  a5 {[%clk 0:02:06]} 19. f3 {[%clk 0:01:52]}  Nh7 {[%clk 0:01:47]} 20. Bxg7 {[%clk 0:01:50]}  Kxg7 {[%clk 0:01:48]} 21. Ne3 {[%clk 0:01:48]}  Be6 {[%clk 0:01:43]} 22. Nd4 {[%clk 0:01:43]}  Qg5 {[%clk 0:01:37]} 23. Kh2 {[%clk 0:01:30]}  Qc5 {[%clk 0:01:35]} 24. c4 {[%clk 0:01:21]}  Nc6 {[%clk 0:01:26]} 25. Nb5 {[%clk 0:01:21]}  Nb4 {[%clk 0:01:22]} 26. Nd5 {[%clk 0:01:20]}  Bxd5 {[%clk 0:01:05]} 27. cxd5 {[%clk 0:01:21]}  Qb6 {[%clk 0:01:05]} 28. Rbc1 {[%clk 0:01:20]}  Rac8 {[%clk 0:01:05]} 29. h4 {[%clk 0:01:20]}  Re7 {[%clk 0:01:04]} 30. Rc4 {[%clk 0:01:19]}  Na6 {[%clk 0:01:01]} 31. Rfc1 {[%clk 0:01:19]}  f6 {[%clk 0:00:56]} 32. Qc3 {[%clk 0:01:16]}  Nf8 {[%clk 0:00:52]} 33. Bh3 {[%clk 0:01:16]}  Rd8 {[%clk 0:00:33]} 34. Nxc7 {[%clk 0:01:14]}  Nc5 {[%clk 0:00:34]} 35. Nb5 {[%clk 0:01:11]}  Nfd7 {[%clk 0:00:24]} 36. Nd4 {[%clk 0:01:07]}  Ne5 {[%clk 0:00:23]} 37. Rxc5 {[%clk 0:01:03]}  Qxc5 {[%clk 0:00:22]} 38. Qxc5 {[%clk 0:01:03]}  dxc5 {[%clk 0:00:22]} 39. Rxc5 {[%clk 0:01:04]}  Rd6 {[%clk 0:00:20]} 40. Rxa5 {[%clk 0:01:01]}  Rb6 {[%clk 0:00:19]} 41. Kg2 {[%clk 0:00:58]}  Kf7 {[%clk 0:00:18]} 42. Be6+ {[%clk 0:00:56]}  Kg7 {[%clk 0:00:18]} 43. Rc5 {[%clk 0:00:56]}  Nd3 {[%clk 0:00:17]} 44. Rc3 {[%clk 0:00:56]}  Ne5 {[%clk 0:00:16]} 45. f4 {[%clk 0:00:54]}  Nf7 {[%clk 0:00:17]} 46. Kf3 {[%clk 0:00:51]}  Rb4 {[%clk 0:00:17]} 47. Ke3 {[%clk 0:00:51]}  Nd6 {[%clk 0:00:17]} 48. e5 {[%clk 0:00:50]}  fxe5 {[%clk 0:00:16]} 49. fxe5 {[%clk 0:00:51]}  Nf7 {[%clk 0:00:17]} 50. Ke4 {[%clk 0:00:49]}  Nd8 {[%clk 0:00:14]} 51. Bh3 {[%clk 0:00:49]}  Nf7 {[%clk 0:00:15]} 52. Be6 {[%clk 0:00:49]}  Nd8 {[%clk 0:00:15]} 53. Rc4 {[%clk 0:00:49]}  Rxc4 {[%clk 0:00:10]} 54. bxc4 {[%clk 0:00:50]}  b6 {[%clk 0:00:10]} 55. Bh3 {[%clk 0:00:44]}  Ra7 {[%clk 0:00:10]} 56. d6 {[%clk 0:00:41]}  Nf7 {[%clk 0:00:10]} 57. Be6 {[%clk 0:00:37]}  Nd8 {[%clk 0:00:07]} 58. Bd5 {[%clk 0:00:37]}  Rxa4 {[%clk 0:00:06]} 59. e6 {[%clk 0:00:37]}  Ra1 {[%clk 0:00:06]} 60. e7 {[%clk 0:00:37]}  Re1+ {[%clk 0:00:07]} 61. Kd3 {[%clk 0:00:37]}  Nf7 {[%clk 0:00:07]} 62. Ne6+ {[%clk 0:00:30]}  Rxe6 {[%clk 0:00:05]} 63. Bxe6 {[%clk 0:00:31]}  Nxd6 {[%clk 0:00:06]} 64. Bd7 {[%clk 0:00:09]}  Kf7 {[%clk 0:00:06]} 65. e8=Q+ {[%clk 0:00:09]}  Nxe8 {[%clk 0:00:07]} 66. Bxe8+ {[%clk 0:00:10]}  Kxe8 {[%clk 0:00:08]} 67. Ke4 {[%clk 0:00:11]}  Kd7 {[%clk 0:00:07]} 68. Kd5 {[%clk 0:00:10]}  Kc7 {[%clk 0:00:07]} 69. Ke6 {[%clk 0:00:05]}  Kc6 {[%clk 0:00:08]} 70. Kf6 {[%clk 0:00:06]}  Kc5 {[%clk 0:00:08]} 71. Kxg6 {[%clk 0:00:07]}  Kxc4 {[%clk 0:00:09]} 72. Kxh5 {[%clk 0:00:08]}  b5 {[%clk 0:00:10]} 73. g4 {[%clk 0:00:09]}  b4 {[%clk 0:00:10]} 74. g5 {[%clk 0:00:10]}  Kd5 {[%clk 0:00:10]} 75. g6 {[%clk 0:00:10]}  Ke6 {[%clk 0:00:11]} 76. Kh6 {[%clk 0:00:10]}  b3 {[%clk 0:00:11]} 77. g7 {[%clk 0:00:11]}  Kf7 {[%clk 0:00:09]} 78. Kh7 {[%clk 0:00:11]}  b2 {[%clk 0:00:10]} 79. g8=Q+ {[%clk 0:00:12]}  Kf6 {[%clk 0:00:10]} 80. Qg6+ {[%clk 0:00:12]} 1-0


[Site "https://www.chess.com"]

[Event "Titled Tuesday Blitz March 14 Early 2023"]
[White "Schmakel, Sam"]
[Black "Xiong, Jeffery"]
[WhiteFideId "2039311"]
[BlackFideId "2047640"]
[WhiteElo "2356"]
[BlackElo "2726"]
[Result "0-1"]
[Round "02"]
[TimeControl "180+2"]
[Date "2023.03.14"]
[WhiteClock "0:00:10"]
[BlackClock "0:02:07"]

1. d4 {[%clk 0:03:00]}  d5 {[%clk 0:03:00]} 2. c4 {[%clk 0:03:00]}  e6 {[%clk 0:03:00]} 3. Nc3 {[%clk 0:03:00]}  Nf6 {[%clk 0:03:01]} 4. Nf3 {[%clk 0:02:59]}  dxc4 {[%clk 0:02:59]} 5. e4 {[%clk 0:02:58]}  b5 {[%clk 0:03:00]} 6. e5 {[%clk 0:02:55]}  Nd5 {[%clk 0:03:00]} 7. Nxb5 {[%clk 0:02:55]}  Nb6 {[%clk 0:03:01]} 8. Be2 {[%clk 0:02:52]}  Nc6 {[%clk 0:03:02]} 9. O-O {[%clk 0:02:52]}  Be7 {[%clk 0:03:02]} 10. Qd2 {[%clk 0:02:48]}  Bb7 {[%clk 0:03:01]} 11. Qf4 {[%clk 0:02:30]}  Qd7 {[%clk 0:03:02]} 12. Qg3 {[%clk 0:02:03]}  O-O-O {[%clk 0:03:01]} 13. Rd1 {[%clk 0:02:00]}  g5 {[%clk 0:03:01]} 14. b3 {[%clk 0:01:56]}  a6 {[%clk 0:02:56]} 15. Nc3 {[%clk 0:01:53]}  cxb3 {[%clk 0:02:47]} 16. axb3 {[%clk 0:01:52]}  Nb4 {[%clk 0:02:48]} 17. Be3 {[%clk 0:01:24]}  Rhg8 {[%clk 0:02:47]} 18. Nd2 {[%clk 0:01:23]}  Nc2 {[%clk 0:02:45]} 19. Rac1 {[%clk 0:01:06]}  Nxd4 {[%clk 0:02:40]} 20. Bxd4 {[%clk 0:00:46]}  Qxd4 {[%clk 0:02:41]} 21. Nc4 {[%clk 0:00:47]}  Qc5 {[%clk 0:02:41]} 22. Na4 {[%clk 0:00:41]}  Rxd1+ {[%clk 0:02:37]} 23. Bxd1 {[%clk 0:00:42]}  Nxa4 {[%clk 0:02:34]} 24. Nd6+ {[%clk 0:00:35]}  cxd6 {[%clk 0:02:35]} 25. Rxc5+ {[%clk 0:00:36]}  Nxc5 {[%clk 0:02:36]} 26. exd6 {[%clk 0:00:36]}  Ne4 {[%clk 0:02:34]} 27. Qf3 {[%clk 0:00:16]}  Nxd6 {[%clk 0:02:33]} 28. Qe3 {[%clk 0:00:17]}  Kb8 {[%clk 0:02:25]} 29. h3 {[%clk 0:00:15]}  Rc8 {[%clk 0:02:22]} 30. Be2 {[%clk 0:00:15]}  h6 {[%clk 0:02:13]} 31. Bd3 {[%clk 0:00:14]}  Rc3 {[%clk 0:02:11]} 32. Qd4 {[%clk 0:00:11]}  Rxb3 {[%clk 0:02:10]} 33. Bc2 {[%clk 0:00:12]}  Rb5 {[%clk 0:02:09]} 34. Qh8+ {[%clk 0:00:12]}  Kc7 {[%clk 0:02:09]} 35. Qxh6 {[%clk 0:00:12]}  Rc5 {[%clk 0:02:09]} 36. Qh7 {[%clk 0:00:12]}  a5 {[%clk 0:02:09]} 37. Qd3 {[%clk 0:00:12]}  Be4 {[%clk 0:02:09]} 38. Qd4 {[%clk 0:00:10]}  Rxc2 {[%clk 0:02:09]} 39. Qa7+ {[%clk 0:00:10]}  Nb7 {[%clk 0:02:09]} 40. Qd4 {[%clk 0:00:10]}  Bd5 {[%clk 0:02:07]} 0-1


[Site "https://www.chess.com"]

[Event "Titled Tuesday Blitz March 14 Early 2023"]
[White "Tanenbaum, Zachary"]
[Black "Le, Tuan Minh"]
[WhiteFideId "2060850"]
[BlackFideId "12401153"]
[WhiteElo "2175"]
[BlackElo "2558"]
[Result "0-1"]
[Round "02"]
[TimeControl "180+2"]
[Date "2023.03.14"]
[WhiteClock "0:00:01"]
[BlackClock "0:00:23"]

1. e4 {[%clk 0:03:00]}  c5 {[%clk 0:02:57]} 2. Nf3 {[%clk 0:03:01]}  Nf6 {[%clk 0:02:58]} 3. e5 {[%clk 0:03:01]}  Nd5 {[%clk 0:02:58]} 4. Nc3 {[%clk 0:03:02]}  Nxc3 {[%clk 0:02:59]} 5. dxc3 {[%clk 0:03:02]}  Nc6 {[%clk 0:03:00]} 6. Bf4 {[%clk 0:03:00]}  Qb6 {[%clk 0:03:00]} 7. b3 {[%clk 0:02:58]}  Qa5 {[%clk 0:03:00]} 8. Qd2 {[%clk 0:02:56]}  h6 {[%clk 0:03:00]} 9. Bd3 {[%clk 0:02:51]}  g5 {[%clk 0:02:53]} 10. Bg3 {[%clk 0:02:49]}  g4 {[%clk 0:02:43]} 11. Nh4 {[%clk 0:02:47]}  Bg7 {[%clk 0:02:43]} 12. f4 {[%clk 0:02:32]}  d5 {[%clk 0:02:15]} 13. Nf5 {[%clk 0:02:07]}  Bxf5 {[%clk 0:02:12]} 14. Bxf5 {[%clk 0:02:08]}  h5 {[%clk 0:02:07]} 15. O-O {[%clk 0:01:44]}  e6 {[%clk 0:02:06]} 16. Bd3 {[%clk 0:01:43]}  O-O-O {[%clk 0:02:06]} 17. Rae1 {[%clk 0:01:07]}  h4 {[%clk 0:01:49]} 18. Bf2 {[%clk 0:01:07]}  Rdg8 {[%clk 0:01:40]} 19. Qe3 {[%clk 0:00:38]}  g3 {[%clk 0:01:18]} 20. hxg3 {[%clk 0:00:37]}  hxg3 {[%clk 0:01:19]} 21. Bxg3 {[%clk 0:00:34]}  Qxc3 {[%clk 0:01:20]} 22. f5 {[%clk 0:00:29]}  Bh6 {[%clk 0:01:07]} 23. Bf4 {[%clk 0:00:23]}  Bxf4 {[%clk 0:00:59]} 24. Qxf4 {[%clk 0:00:23]}  a6 {[%clk 0:00:49]} 25. Re3 {[%clk 0:00:22]}  Qd2 {[%clk 0:00:47]} 26. Qf2 {[%clk 0:00:17]}  Qb4 {[%clk 0:00:44]} 27. Qf4 {[%clk 0:00:11]}  Nd4 {[%clk 0:00:42]} 28. fxe6 {[%clk 0:00:02]}  fxe6 {[%clk 0:00:43]} 29. Rg3 {[%clk 0:00:02]}  Kb8 {[%clk 0:00:25]} 30. Rg7 {[%clk 0:00:01]}  Rxg7 {[%clk 0:00:24]} 31. Qf6 {[%clk 0:00:01]}  Rhg8 {[%clk 0:00:23]} 0-1


[Site "https://www.chess.com"]

[Event "Titled Tuesday Blitz March 14 Early 2023"]
[White "Tan, Zhongyi"]
[Black "Lazavik, Denis"]
[WhiteFideId "8603642"]
[BlackFideId "13515110"]
[WhiteElo "2519"]
[BlackElo "2560"]
[Result "1/2-1/2"]
[Round "02"]
[TimeControl "180+2"]
[Date "2023.03.14"]
[WhiteClock "0:00:06"]
[BlackClock "0:00:07"]

1. d4 {[%clk 0:03:00]}  Nf6 {[%clk 0:03:00]} 2. c4 {[%clk 0:03:00]}  e6 {[%clk 0:03:01]} 3. Nc3 {[%clk 0:03:00]}  Bb4 {[%clk 0:03:01]} 4. e3 {[%clk 0:03:00]}  O-O {[%clk 0:03:00]} 5. Bd2 {[%clk 0:02:58]}  c5 {[%clk 0:03:00]} 6. a3 {[%clk 0:02:56]}  Bxc3 {[%clk 0:03:00]} 7. Bxc3 {[%clk 0:02:57]}  Ne4 {[%clk 0:03:00]} 8. Ne2 {[%clk 0:02:57]}  b6 {[%clk 0:03:00]} 9. d5 {[%clk 0:02:45]}  Ba6 {[%clk 0:02:58]} 10. Qc2 {[%clk 0:02:26]}  exd5 {[%clk 0:02:53]} 11. cxd5 {[%clk 0:02:25]}  Nxc3 {[%clk 0:02:53]} 12. Nxc3 {[%clk 0:02:22]}  Bxf1 {[%clk 0:02:52]} 13. Kxf1 {[%clk 0:02:23]}  d6 {[%clk 0:02:53]} 14. g3 {[%clk 0:02:20]}  Nd7 {[%clk 0:02:52]} 15. Kg2 {[%clk 0:02:20]}  f5 {[%clk 0:02:53]} 16. Rhe1 {[%clk 0:02:10]}  a6 {[%clk 0:02:47]} 17. a4 {[%clk 0:02:09]}  Qe7 {[%clk 0:02:43]} 18. Rad1 {[%clk 0:02:04]}  g6 {[%clk 0:02:38]} 19. Rb1 {[%clk 0:01:52]}  Nf6 {[%clk 0:02:32]} 20. b4 {[%clk 0:01:48]}  Rac8 {[%clk 0:02:02]} 21. bxc5 {[%clk 0:01:40]}  Rxc5 {[%clk 0:02:01]} 22. Qd3 {[%clk 0:01:39]}  Qe5 {[%clk 0:01:47]} 23. Rb3 {[%clk 0:01:28]}  Rfc8 {[%clk 0:01:44]} 24. Ne2 {[%clk 0:01:12]}  Qxd5+ {[%clk 0:01:37]} 25. Qxd5+ {[%clk 0:01:12]}  Nxd5 {[%clk 0:01:37]} 26. Rd1 {[%clk 0:01:06]}  b5 {[%clk 0:01:00]} 27. axb5 {[%clk 0:01:02]}  axb5 {[%clk 0:01:00]} 28. Rbd3 {[%clk 0:00:49]}  Nf6 {[%clk 0:00:56]} 29. Rxd6 {[%clk 0:00:44]}  Ne4 {[%clk 0:00:57]} 30. Rd8+ {[%clk 0:00:42]}  Rxd8 {[%clk 0:00:56]} 31. Rxd8+ {[%clk 0:00:43]}  Kf7 {[%clk 0:00:57]} 32. Nd4 {[%clk 0:00:41]}  Ke7 {[%clk 0:00:51]} 33. Rb8 {[%clk 0:00:37]}  Nd6 {[%clk 0:00:49]} 34. h4 {[%clk 0:00:28]}  h6 {[%clk 0:00:35]} 35. Rh8 {[%clk 0:00:21]}  h5 {[%clk 0:00:34]} 36. Rb8 {[%clk 0:00:21]}  Kf6 {[%clk 0:00:22]} 37. Kf3 {[%clk 0:00:19]}  Ke5 {[%clk 0:00:18]} 38. Ke2 {[%clk 0:00:12]}  Kf6 {[%clk 0:00:07]} 39. Rb6 {[%clk 0:00:12]}  Ke7 {[%clk 0:00:07]} 40. Kf3 {[%clk 0:00:11]}  Kd7 {[%clk 0:00:06]} 41. Rb8 {[%clk 0:00:07]}  Rc8 {[%clk 0:00:06]} 42. Rxc8 {[%clk 0:00:04]}  Kxc8 {[%clk 0:00:06]} 43. Kf4 {[%clk 0:00:05]}  b4 {[%clk 0:00:05]} 44. Kg5 {[%clk 0:00:05]}  Ne4+ {[%clk 0:00:03]} 45. Kxg6 {[%clk 0:00:05]}  Nxf2 {[%clk 0:00:03]} 46. Kxh5 {[%clk 0:00:06]}  Ne4 {[%clk 0:00:02]} 47. g4 {[%clk 0:00:03]}  Nf6+ {[%clk 0:00:01]} 48. Kg5 {[%clk 0:00:02]}  fxg4 {[%clk 0:00:02]} 49. Kxf6 {[%clk 0:00:02]}  g3 {[%clk 0:00:03]} 50. h5 {[%clk 0:00:03]}  g2 {[%clk 0:00:03]} 51. Ne2 {[%clk 0:00:03]}  b3 {[%clk 0:00:04]} 52. h6 {[%clk 0:00:03]}  b2 {[%clk 0:00:05]} 53. h7 {[%clk 0:00:04]}  b1=Q {[%clk 0:00:05]} 54. h8=Q+ {[%clk 0:00:04]}  Kb7 {[%clk 0:00:04]} 55. Qg7+ {[%clk 0:00:05]}  Ka6 {[%clk 0:00:04]} 56. Qxg2 {[%clk 0:00:05]}  Qb6+ {[%clk 0:00:05]} 57. Kg5 {[%clk 0:00:05]}  Qxe3+ {[%clk 0:00:05]} 58. Kg4 {[%clk 0:00:05]}  Qe6+ {[%clk 0:00:05]} 59. Kg3 {[%clk 0:00:05]}  Qg6+ {[%clk 0:00:06]} 60. Kf2 {[%clk 0:00:05]}  Qxg2+ {[%clk 0:00:07]} 61. Kxg2 {[%clk 0:00:06]} 1/2-1/2


[Site "https://www.chess.com"]

[Event "Titled Tuesday Blitz March 14 Early 2023"]
[White "Seo, Jung Min"]
[Black "Bortnyk, Olexandr"]
[WhiteFideId "1734687"]
[BlackFideId "14120828"]
[WhiteElo "2468"]
[BlackElo "2734"]
[Result "1-0"]
[Round "02"]
[TimeControl "180+2"]
[Date "2023.03.14"]
[WhiteClock "0:00:08"]
[BlackClock "0:00:07"]

1. d4 {[%clk 0:02:59]}  d6 {[%clk 0:03:00]} 2. e4 {[%clk 0:02:59]}  Nf6 {[%clk 0:03:00]} 3. Nc3 {[%clk 0:02:59]}  Nbd7 {[%clk 0:02:59]} 4. Nf3 {[%clk 0:02:58]}  e5 {[%clk 0:02:58]} 5. Rg1 {[%clk 0:02:55]}  c6 {[%clk 0:02:53]} 6. g4 {[%clk 0:02:54]}  h6 {[%clk 0:02:50]} 7. Be3 {[%clk 0:02:45]}  g6 {[%clk 0:02:46]} 8. Qd2 {[%clk 0:02:39]}  Bg7 {[%clk 0:02:44]} 9. O-O-O {[%clk 0:02:38]}  Qe7 {[%clk 0:02:34]} 10. h4 {[%clk 0:02:36]}  b5 {[%clk 0:02:16]} 11. g5 {[%clk 0:02:31]}  hxg5 {[%clk 0:02:17]} 12. hxg5 {[%clk 0:02:31]}  Nh5 {[%clk 0:02:18]} 13. dxe5 {[%clk 0:02:30]}  dxe5 {[%clk 0:02:17]} 14. Kb1 {[%clk 0:02:14]}  O-O {[%clk 0:02:13]} 15. Qd6 {[%clk 0:02:07]}  Qxd6 {[%clk 0:01:51]} 16. Rxd6 {[%clk 0:02:06]}  Nb8 {[%clk 0:01:52]} 17. Nd2 {[%clk 0:01:59]}  Re8 {[%clk 0:01:50]} 18. Nb3 {[%clk 0:01:59]}  Bf8 {[%clk 0:01:49]} 19. Rd1 {[%clk 0:01:58]}  a5 {[%clk 0:01:49]} 20. a4 {[%clk 0:01:38]}  b4 {[%clk 0:01:45]} 21. Na2 {[%clk 0:01:38]}  Be6 {[%clk 0:01:42]} 22. Nc5 {[%clk 0:01:32]}  Bxc5 {[%clk 0:01:42]} 23. Bxc5 {[%clk 0:01:32]}  Nd7 {[%clk 0:01:43]} 24. Be3 {[%clk 0:01:32]}  Nf4 {[%clk 0:01:40]} 25. Nc1 {[%clk 0:01:30]}  Kg7 {[%clk 0:01:34]} 26. Nd3 {[%clk 0:01:26]}  Nxd3 {[%clk 0:01:35]} 27. Bxd3 {[%clk 0:01:26]}  b3 {[%clk 0:01:02]} 28. cxb3 {[%clk 0:01:21]}  Bxb3 {[%clk 0:01:03]} 29. Bc2 {[%clk 0:01:22]}  Bxc2+ {[%clk 0:01:03]} 30. Kxc2 {[%clk 0:01:22]}  Nf8 {[%clk 0:01:04]} 31. Rd6 {[%clk 0:01:20]}  Rec8 {[%clk 0:00:57]} 32. Bd2 {[%clk 0:01:19]}  Ne6 {[%clk 0:00:43]} 33. Bc3 {[%clk 0:01:19]}  Nd4+ {[%clk 0:00:40]} 34. Bxd4 {[%clk 0:01:19]}  exd4 {[%clk 0:00:41]} 35. Rxd4 {[%clk 0:01:19]}  Rab8 {[%clk 0:00:41]} 36. Rgd1 {[%clk 0:01:11]}  Rh8 {[%clk 0:00:39]} 37. Rc4 {[%clk 0:01:00]}  Rb6 {[%clk 0:00:38]} 38. e5 {[%clk 0:00:55]}  Rh2 {[%clk 0:00:37]} 39. Rd2 {[%clk 0:00:54]}  Rg2 {[%clk 0:00:38]} 40. f4 {[%clk 0:00:51]}  Rg3 {[%clk 0:00:38]} 41. Rc5 {[%clk 0:00:42]}  Rgb3 {[%clk 0:00:35]} 42. Kc1 {[%clk 0:00:31]}  R3b4 {[%clk 0:00:36]} 43. Rxa5 {[%clk 0:00:31]}  Rxf4 {[%clk 0:00:35]} 44. Ra7 {[%clk 0:00:30]}  c5 {[%clk 0:00:28]} 45. Rd6 {[%clk 0:00:15]}  Rf1+ {[%clk 0:00:27]} 46. Kc2 {[%clk 0:00:15]}  Rf2+ {[%clk 0:00:27]} 47. Kc3 {[%clk 0:00:11]}  Rbxb2 {[%clk 0:00:25]} 48. Rf6 {[%clk 0:00:09]}  Rxf6 {[%clk 0:00:07]} 49. exf6+ {[%clk 0:00:08]}  Kh7 {[%clk 0:00:07]} 50. Kxb2 {[%clk 0:00:08]} 1-0


[Site "https://www.chess.com"]

[Event "Titled Tuesday Blitz March 14 Early 2023"]
[White "Van Foreest, Jorden"]
[Black "Krysa, Leandro"]
[WhiteFideId "1039784"]
[BlackFideId "116807"]
[WhiteElo "2633"]
[BlackElo "2485"]
[Result "1-0"]
[Round "02"]
[TimeControl "180+2"]
[Date "2023.03.14"]
[WhiteClock "0:00:15"]
[BlackClock "0:00:02"]

1. e4 {[%clk 0:03:00]}  c5 {[%clk 0:03:00]} 2. Nc3 {[%clk 0:03:00]}  Nc6 {[%clk 0:02:59]} 3. Bb5 {[%clk 0:03:00]}  Nd4 {[%clk 0:02:59]} 4. Nf3 {[%clk 0:02:59]}  e6 {[%clk 0:02:58]} 5. O-O {[%clk 0:02:59]}  a6 {[%clk 0:02:59]} 6. Bd3 {[%clk 0:02:59]}  Ne7 {[%clk 0:02:59]} 7. Nxd4 {[%clk 0:02:56]}  cxd4 {[%clk 0:03:00]} 8. Ne2 {[%clk 0:02:56]}  Nc6 {[%clk 0:03:00]} 9. c3 {[%clk 0:02:57]}  Bc5 {[%clk 0:03:00]} 10. b4 {[%clk 0:02:56]}  Ba7 {[%clk 0:02:59]} 11. a4 {[%clk 0:02:55]}  O-O {[%clk 0:02:55]} 12. Bb2 {[%clk 0:02:53]}  dxc3 {[%clk 0:02:52]} 13. dxc3 {[%clk 0:02:52]}  d6 {[%clk 0:02:52]} 14. Bc2 {[%clk 0:02:39]}  e5 {[%clk 0:02:48]} 15. Bb3 {[%clk 0:02:37]}  Be6 {[%clk 0:02:46]} 16. Ng3 {[%clk 0:02:34]}  g6 {[%clk 0:02:38]} 17. Bc1 {[%clk 0:02:35]}  Re8 {[%clk 0:02:31]} 18. Ra2 {[%clk 0:02:34]}  Qe7 {[%clk 0:02:28]} 19. Re1 {[%clk 0:02:25]}  Rad8 {[%clk 0:02:26]} 20. Nf1 {[%clk 0:02:23]}  Bxb3 {[%clk 0:02:22]} 21. Qxb3 {[%clk 0:02:23]}  Qe6 {[%clk 0:02:23]} 22. Qxe6 {[%clk 0:02:21]}  fxe6 {[%clk 0:02:20]} 23. Be3 {[%clk 0:02:17]}  Bxe3 {[%clk 0:02:13]} 24. Nxe3 {[%clk 0:02:18]}  d5 {[%clk 0:02:09]} 25. b5 {[%clk 0:02:18]}  Na5 {[%clk 0:02:03]} 26. Ng4 {[%clk 0:02:17]}  Kg7 {[%clk 0:02:00]} 27. exd5 {[%clk 0:02:07]}  Rxd5 {[%clk 0:01:52]} 28. bxa6 {[%clk 0:02:05]}  bxa6 {[%clk 0:01:50]} 29. g3 {[%clk 0:01:57]}  Rc8 {[%clk 0:01:47]} 30. Rb2 {[%clk 0:01:43]}  Rxc3 {[%clk 0:01:43]} 31. Nxe5 {[%clk 0:01:43]}  Rcc5 {[%clk 0:01:29]} 32. f4 {[%clk 0:01:33]}  g5 {[%clk 0:01:14]} 33. Kf2 {[%clk 0:01:24]}  gxf4 {[%clk 0:01:06]} 34. gxf4 {[%clk 0:01:25]}  Rd4 {[%clk 0:01:06]} 35. Ke3 {[%clk 0:01:18]}  Rxa4 {[%clk 0:00:58]} 36. Rg1+ {[%clk 0:01:18]}  Kh6 {[%clk 0:00:58]} 37. Ng4+ {[%clk 0:01:10]}  Kh5 {[%clk 0:00:58]} 38. Nf6+ {[%clk 0:01:05]}  Kh6 {[%clk 0:00:55]} 39. Ng4+ {[%clk 0:00:45]}  Kh5 {[%clk 0:00:55]} 40. Re2 {[%clk 0:00:28]}  Rc3+ {[%clk 0:00:45]} 41. Kd2 {[%clk 0:00:28]}  Ra2+ {[%clk 0:00:42]} 42. Kxc3 {[%clk 0:00:29]}  Rxe2 {[%clk 0:00:42]} 43. Nf6+ {[%clk 0:00:29]}  Kh4 {[%clk 0:00:34]} 44. Rg5 {[%clk 0:00:29]}  Rxh2 {[%clk 0:00:23]} 45. Rxa5 {[%clk 0:00:27]}  Rf2 {[%clk 0:00:19]} 46. Ra4 {[%clk 0:00:27]}  Kh3 {[%clk 0:00:12]} 47. Nxh7 {[%clk 0:00:23]}  Kg4 {[%clk 0:00:10]} 48. Nf6+ {[%clk 0:00:23]}  Kf5 {[%clk 0:00:10]} 49. Nh5 {[%clk 0:00:23]}  Rg2 {[%clk 0:00:07]} 50. Kd3 {[%clk 0:00:21]}  Kg6 {[%clk 0:00:07]} 51. Ra5 {[%clk 0:00:19]}  Rg4 {[%clk 0:00:03]} 52. Ke3 {[%clk 0:00:18]}  Rg1 {[%clk 0:00:03]} 53. Kf2 {[%clk 0:00:17]}  Rb1 {[%clk 0:00:03]} 54. Ng3 {[%clk 0:00:15]}  Rb2+ {[%clk 0:00:02]} 55. Kf3 {[%clk 0:00:14]}  Rb6 {[%clk 0:00:02]} 56. Kg4 {[%clk 0:00:14]}  Kf6 {[%clk 0:00:03]} 57. Ne4+ {[%clk 0:00:15]}  Ke7 {[%clk 0:00:04]} 58. Nc5 {[%clk 0:00:15]}  Rc6 {[%clk 0:00:04]} 59. Nxa6 {[%clk 0:00:14]}  e5 {[%clk 0:00:04]} 60. Rxe5+ {[%clk 0:00:14]}  Kf6 {[%clk 0:00:04]} 61. Nc5 {[%clk 0:00:14]}  Rd6 {[%clk 0:00:02]} 62. Ne4+ {[%clk 0:00:15]} 1-0


[Site "https://www.chess.com"]

[Event "Titled Tuesday Blitz March 14 Early 2023"]
[White "Sjugirov, Sanan"]
[Black "Csonka, Balazs"]
[WhiteFideId "4189302"]
[BlackFideId "742910"]
[WhiteElo "2569"]
[BlackElo "2404"]
[Result "1-0"]
[Round "02"]
[TimeControl "180+2"]
[Date "2023.03.14"]
[WhiteClock "0:00:12"]
[BlackClock "0:00:05"]

1. d4 {[%clk 0:03:00]}  d5 {[%clk 0:02:59]} 2. c4 {[%clk 0:03:01]}  dxc4 {[%clk 0:02:59]} 3. Nf3 {[%clk 0:02:58]}  Nf6 {[%clk 0:02:58]} 4. e3 {[%clk 0:02:59]}  e6 {[%clk 0:02:58]} 5. Bxc4 {[%clk 0:02:58]}  a6 {[%clk 0:02:58]} 6. a4 {[%clk 0:02:57]}  c5 {[%clk 0:02:56]} 7. O-O {[%clk 0:02:57]}  Nc6 {[%clk 0:02:54]} 8. Qe2 {[%clk 0:02:56]}  cxd4 {[%clk 0:02:46]} 9. Rd1 {[%clk 0:02:56]}  Be7 {[%clk 0:02:44]} 10. exd4 {[%clk 0:02:56]}  O-O {[%clk 0:02:44]} 11. Nc3 {[%clk 0:02:55]}  Nd5 {[%clk 0:02:44]} 12. Bd3 {[%clk 0:02:32]}  Ncb4 {[%clk 0:02:07]} 13. Bb1 {[%clk 0:02:30]}  b6 {[%clk 0:02:07]} 14. h4 {[%clk 0:02:08]}  Bb7 {[%clk 0:01:53]} 15. Ng5 {[%clk 0:02:02]}  Bxg5 {[%clk 0:01:44]} 16. hxg5 {[%clk 0:01:59]}  Rc8 {[%clk 0:01:36]} 17. Ra3 {[%clk 0:01:55]}  a5 {[%clk 0:01:24]} 18. Ne4 {[%clk 0:01:09]}  g6 {[%clk 0:00:39]} 19. Qg4 {[%clk 0:00:52]}  Kg7 {[%clk 0:00:33]} 20. Rh3 {[%clk 0:00:49]}  Rh8 {[%clk 0:00:32]} 21. Qh4 {[%clk 0:00:41]}  Kg8 {[%clk 0:00:18]} 22. Bd2 {[%clk 0:00:36]}  Nc6 {[%clk 0:00:17]} 23. Bf4 {[%clk 0:00:28]}  Nce7 {[%clk 0:00:13]} 24. Be5 {[%clk 0:00:26]}  Nf5 {[%clk 0:00:13]} 25. Qg4 {[%clk 0:00:25]}  h5 {[%clk 0:00:11]} 26. gxh6 {[%clk 0:00:20]}  Rxh6 {[%clk 0:00:12]} 27. Rxh6 {[%clk 0:00:20]}  Nxh6 {[%clk 0:00:13]} 28. Qh3 {[%clk 0:00:20]}  Kh7 {[%clk 0:00:13]} 29. Ba2 {[%clk 0:00:14]}  f5 {[%clk 0:00:05]} 30. Bxd5 {[%clk 0:00:12]} 1-0


[Site "https://www.chess.com"]